Workbook

Sheet Disclaimer (hidden)
B2: Legal disclaimer
B3: Please fully read this disclaimer before using this model
E34: www.lentransolutions.com | T34: Level 8, Suite 3, 234 George Street, NSW 2000
E35: contact@lentransolutions.com | T35: ABN: 66 615 474 523

Sheet Title
C12: =Model_Name -> Cashflow Waterfall
C13: LMS Tutorial
C14: Sydney, November 2016
E34: www.lentransolutions.com | T34: Level 8, Suite 3, 234 George Street, NSW 2000
E35: contact@lentransolutions.com | T35: ABN: 66 615 474 523

Sheet Inputs
C1: Assumptions
C2: ="Tutorial: "&Model_Name -> Tutorial: Cashflow Waterfall
C6: Technical inputs
C7: General
C8: Tutorial name | D8: Name | E8: Cashflow Waterfall

Sheet Calc
C1: Calculations
C2: ="Tutorial: "&Model_Name -> Tutorial: Cashflow Waterfall
C3: Forecast year | D3: Num# | H3: =G3+1 -> 1 | I3: =H3+1 -> 2 | J3: 3 | K3: 4 | L3: 5 | M3: 6 | N3: 7 | O3: =N3+1 -> 8 | P3: =O3+1 -> 9 | Q3: =P3+1 -> 10
C5: Timing
C6: Flags | F6: Start | G6: End
C7: Construction | D7: Num# | F7: 1 | G7: 2 | H7: =IF(AND(H$3>=$F7,H$3<=$G7),1,0) -> 1 | I7: =IF(AND(I$3>=$F7,I$3<=$G7),1,0) -> 1 | J7: =IF(AND(J$3>=$F7,J$3<=$G7),1,0) -> 0 | K7: =IF(AND(K$3>=$F7,K$3<=$G7),1,0) -> 0 | L7: =IF(AND(L$3>=$F7,L$3<=$G7),1,0) -> 0 | M7: =IF(AND(M$3>=$F7,M$3<=$G7),1,0) -> 0 | N7: =IF(AND(N$3>=$F7,N$3<=$G7),1,0) -> 0 | O7: =IF(AND(O$3>=$F7,O$3<=$G7),1,0) -> 0 | P7: =IF(AND(P$3>=$F7,P$3<=$G7),1,0) -> 0 | Q7: =IF(AND(Q$3>=$F7,Q$3<=$G7),1,0) -> 0
C8: Operations | D8: Num# | F8: =G7+1 -> 3 | G8: 8 | H8: =IF(AND(H$3>=$F8,H$3<=$G8),1,0) -> 0 | I8: =IF(AND(I$3>=$F8,I$3<=$G8),1,0) -> 0 | J8: =IF(AND(J$3>=$F8,J$3<=$G8),1,0) -> 1 | K8: =IF(AND(K$3>=$F8,K$3<=$G8),1,0) -> 1 | L8: =IF(AND(L$3>=$F8,L$3<=$G8),1,0) -> 1 | M8: =IF(AND(M$3>=$F8,M$3<=$G8),1,0) -> 1 | N8: =IF(AND(N$3>=$F8,N$3<=$G8),1,0) -> 1 | O8: =IF(AND(O$3>=$F8,O$3<=$G8),1,0) -> 1 | P8: =IF(AND(P$3>=$F8,P$3<=$G8),1,0) -> 0 | Q8: =IF(AND(Q$3>=$F8,Q$3<=$G8),1,0) -> 0
C10: Cashflow waterfall (AUD '000)
C11: Operating cashflows
C12: Revenue | G12: =SUM(H12:Q12) -> 7444.66125 | H12: 0 | I12: 0 | J12: 1077.375 | K12: 1185.1125 | L12: 1249.755 | M12: 1282.07625 | N12: 1314.3975 | O12: 1335.945 | P12: 0 | Q12: 0
C13: Operating expenditures | G13: -2018.8 | H13: 0 | I13: 0 | J13: -280 | K13: -364 | L13: -352.8 | M13: -333.2 | N13: -369.6 | O13: -319.2 | P13: 0 | Q13: 0
C14: Net working capital adjustments | G14: 0 | H14: 0 | I14: 0 | J14: -73 | K14: 12 | L14: -8 | M14: 10 | N14: 7 | O14: 52
C15: Operating cashflows | G15: 5425.86125 | H15: =SUM(H12:H14) -> 0 | I15: =SUM(I12:I14) -> 0 | J15: 724.375 | K15: 833.1125 | L15: 888.955 | M15: 958.87625 | N15: 951.7975 | O15: 1068.745 | P15: 0 | Q15: 0
C17: Construction costs
C18: Construction costs (incl. contingency) | G18: =SUM(H18:Q18) -> -1670 | H18: -780 | I18: -890 | J18: 0 | K18: 0 | L18: 0 | M18: 0 | N18: 0 | O18: 0 | P18: 0 | Q18: 0
C19: Senior debt: interest during construction | G19: -116 | H19: -38 | I19: -78 | J19: 0 | K19: 0 | L19: 0 | M19: 0 | N19: 0 | O19: 0 | P19: 0 | Q19: 0
C20: Senior debt: financing fees | G20: -44 | H20: -26 | I20: -18 | J20: 0 | K20: 0 | L20: 0 | M20: 0 | N20: 0 | O20: 0 | P20: 0 | Q20: 0
C21: Senior DSRA/c: initial funding | G21: -20 | H21: 0 | I21: -20 | J21: 0 | K21: 0 | L21: 0 | M21: 0 | N21: 0 | O21: 0 | P21: 0 | Q21: 0
C22: Junior debt: interest during construction | G22: -24 | H22: 0 | I22: -24 | J22: 0 | K22: 0 | L22: 0 | M22: 0 | N22: 0 | O22: 0 | P22: 0 | Q22: 0
C23: Junior debt: financing fees | G23: -30 | H23: -12 | I23: -18 | J23: 0 | K23: 0 | L23: 0 | M23: 0 | N23: 0 | O23: 0 | P23: 0 | Q23: 0
C24: Total | G24: -1904 | H24: =SUM(H18:H23) -> -856 | I24: -1048 | J24: 0 | K24: 0 | L24: 0 | M24: 0 | N24: 0 | O24: 0 | P24: 0 | Q24: 0
C26: Cashflow before funding | G26: 3521.86125 | H26: =H15+H24 -> -856 | I26: -1048 | J26: 724.375 | K26: 833.1125 | L26: 888.955 | M26: 958.87625 | N26: 951.7975 | O26: 1068.745 | P26: 0 | Q26: 0
C28: Funding
C29: Equity | G29: =SUM(H29:Q29) -> 500 | H29: 500 | I29: 0 | J29: 0 | K29: 0 | L29: 0 | M29: 0 | N29: 0 | O29: 0 | P29: 0 | Q29: 0
C30: Senior debt | G30: 1200 | H30: 356 | I30: 844 | J30: 0 | K30: 0 | L30: 0 | M30: 0 | N30: 0 | O30: 0 | P30: 0 | Q30: 0
C31: Junior debt | G31: 204 | H31: 0 | I31: 204 | J31: 0 | K31: 0 | L31: 0 | M31: 0 | N31: 0 | O31: 0 | P31: 0 | Q31: 0
C32: Total | G32: 1904 | H32: =SUM(H29:H31) -> 856 | I32: =SUM(I29:I31) -> 1048 | J32: 0 | K32: 0 | L32: 0 | M32: 0 | N32: 0 | O32: 0 | P32: 0 | Q32: 0
C34: Cashflow after funding | G34: =SUM(H34:Q34) -> 5425.86125 | H34: =H26+H32 -> 0 | I34: =I26+I32 -> 0 | J34: 724.375 | K34: 833.1125 | L34: 888.955 | M34: 958.87625 | N34: 951.7975 | O34: 1068.745 | P34: 0 | Q34: 0
C36: Interest income | G36: 328.428 | H36: 0 | I36: 0 | J36: 42.42 | K36: 55.56 | L36: 55.488 | M36: 56.292 | N36: 59.196 | O36: 59.472 | P36: 0 | Q36: 0
C37: Tax paid | G37: -2189.52 | H37: 0 | I37: 0 | J37: -282.8 | K37: -370.4 | L37: -369.92 | M37: -375.28 | N37: -394.64 | O37: -396.48 | P37: 0 | Q37: 0
C38: Royalties paid | G38: 0 | H38: 0 | I38: 0 | J38: 0 | K38: 0 | L38: 0 | M38: 0 | N38: 0 | O38: 0 | P38: 0 | Q38: 0
C39: Maintenance capital expenditure | G39: =SUM(H39:Q39) -> -270 | H39: 0 | I39: 0 | J39: 0 | K39: 0 | L39: -135 | M39: 0 | N39: 0 | O39: -135 | P39: 0 | Q39: 0
C41: MMRA/c
C42: Additions | G42: =SUM(H42:Q42) -> -270 | H42: 0 | I42: 0 | J42: -45 | K42: -45 | L42: -45 | M42: -45 | N42: -45 | O42: -45 | P42: 0 | Q42: 0
C43: Releases | G43: 270 | H43: 0 | I43: 0 | J43: 0 | K43: 0 | L43: 135 | M43: 0 | N43: 0 | O43: 135 | P43: 0 | Q43: 0
C44: Net movement | G44: 0 | H44: =SUM(H42:H43) -> 0 | I44: =SUM(I42:I43) -> 0 | J44: =SUM(J42:J43) -> -45 | K44: =SUM(K42:K43) -> -45 | L44: =SUM(L42:L43) -> 90 | M44: =SUM(M42:M43) -> -45 | N44: =SUM(N42:N43) -> -45 | O44: =SUM(O42:O43) -> 90 | P44: =SUM(P42:P43) -> 0 | Q44: =SUM(Q42:Q43) -> 0
C46: Cashflow available for debt service (CFADS) | G46: 3294.76925 | H46: =H34+SUM(H36:H39)+H44 -> 0 | I46: =I34+SUM(I36:I39)+I44 -> 0 | J46: 438.995 | K46: 473.2725 | L46: 529.523 | M46: 594.88825 | N46: 571.3535 | O46: 686.737 | P46: 0 | Q46: 0
C48: Senior debt service
C49: Interest paid | G49: =SUM(H49:Q49) -> -210 | H49: 0 | I49: 0 | J49: -84 | K49: -63 | L49: -42 | M49: -21 | N49: 0 | O49: 0 | P49: 0 | Q49: 0
C50: Principal repayment | G50: -1200 | H50: 0 | I50: 0 | J50: -300 | K50: -300 | L50: -300 | M50: -300 | N50: 0 | O50: 0 | P50: 0 | Q50: 0
C51: Total | G51: -1410 | H51: =SUM(H49:H50) -> 0 | I51: =SUM(I49:I50) -> 0 | J51: -384 | K51: -363 | L51: -342 | M51: -321 | N51: 0 | O51: 0 | P51: 0 | Q51: 0
C53: Cashflow available for senior DSRA/c | G53: =SUM(H53:Q53) -> 1884.76925 | H53: =H46+H51 -> 0 | I53: =I46+I51 -> 0 | J53: 54.995 | K53: 110.2725 | L53: 187.523 | M53: 273.88825 | N53: 571.3535 | O53: 686.737 | P53: 0 | Q53: 0
C55: Senior DSRA/c
C56: Additions: cashflows | G56: =SUM(H56:Q56) -> 17 | H56: 0 | I56: 0 | J56: 0 | K56: 17 | L56: 0 | M56: 0 | N56: 0 | O56: 0 | P56: 0 | Q56: 0
C57: Release: debt service | G57: 0 | H57: 0 | I57: 0 | J57: 0 | K57: 0 | L57: 0 | M57: 0 | N57: 0 | O57: 0 | P57: 0 | Q57: 0
C58: Release: excess cash | G58: -37 | H58: 0 | I58: 0 | J58: 0 | K58: 0 | L58: -7 | M58: -30 | N58: 0 | O58: 0 | P58: 0 | Q58: 0
C59: Total | G59: -20 | H59: =SUM(H56:H58) -> 0 | I59: =SUM(I56:I58) -> 0 | J59: 0 | K59: 17 | L59: -7 | M59: -30 | N59: 0 | O59: 0 | P59: 0 | Q59: 0
C61: Cashflow available for cash sweep | G61: =SUM(H61:Q61) -> 1864.76925 | H61: =H53+H59 -> 0 | I61: =I53+I59 -> 0 | J61: 54.995 | K61: 127.2725 | L61: 180.523 | M61: 243.88825 | N61: 571.3535 | O61: 686.737 | P61: 0 | Q61: 0
C63: Cash sweep | G63: =SUM(H63:Q63) -> 0 | H63: 0 | I63: 0 | J63: 0 | K63: 0 | L63: 0 | M63: 0 | N63: 0 | O63: 0 | P63: 0 | Q63: 0
C65: Cashflow available for junior debt | G65: 1864.76925 | H65: =H61+H63 -> 0 | I65: =I61+I63 -> 0 | J65: 54.995 | K65: 127.2725 | L65: 180.523 | M65: 243.88825 | N65: 571.3535 | O65: 686.737 | P65: 0 | Q65: 0
C67: Junior debt service
C68: Interest paid | G68: =SUM(H68:Q68) -> -49.64 | H68: 0 | I68: 0 | J68: -26.32 | K68: -16.32 | L68: -7 | M68: 0 | N68: 0 | O68: 0 | P68: 0 | Q68: 0
C69: Principal repayment | G69: -204 | H69: 0 | I69: 0 | J69: -28.675 | K69: -110.9525 | L69: -64.3725 | M69: 0 | N69: 0 | O69: 0 | P69: 0 | Q69: 0
C70: Total | G70: -253.64 | H70: =SUM(H68:H69) -> 0 | I70: =SUM(I68:I69) -> 0 | J70: =SUM(J68:J69) -> -54.995 | K70: =SUM(K68:K69) -> -127.2725 | L70: =SUM(L68:L69) -> -71.3725 | M70: =SUM(M68:M69) -> 0 | N70: =SUM(N68:N69) -> 0 | O70: =SUM(O68:O69) -> 0 | P70: =SUM(P68:P69) -> 0 | Q70: =SUM(Q68:Q69) -> 0
C72: Cashflow available for equity | G72: =SUM(H72:Q72) -> 1611.12925 | H72: =H65+H70 -> 0 | I72: =I65+I70 -> 0 | J72: 0 | K72: 0 | L72: 109.1505 | M72: 243.88825 | N72: 571.3535 | O72: 686.737 | P72: 0 | Q72: 0
C74: Distributions | G74: =SUM(H74:Q74) -> -1450.016325 | H74: 0 | I74: 0 | J74: 0 | K74: 0 | L74: -98.23545 | M74: -219.499425 | N74: -514.21815 | O74: -618.0633 | P74: 0 | Q74: 0
C76: Cash balance b/f | H76: =G78*SUM(H$7:H$8) -> 0 | I76: =H78*SUM(I$7:I$8) -> 0 | J76: 0 | K76: 0 | L76: 0 | M76: 10.91505 | N76: 35.303875 | O76: 92.439225 | P76: 0 | Q76: 0
C77: Net cashflow | G77: =SUM(H77:Q77) -> 161.112925 | H77: =H72+H74 -> 0 | I77: =I72+I74 -> 0 | J77: 0 | K77: 0 | L77: 10.91505 | M77: 24.388825 | N77: 57.13535 | O77: 68.6737 | P77: 0 | Q77: 0
C78: Cash balance c/f | H78: =SUM(H76:H77) -> 0 | I78: =SUM(I76:I77) -> 0 | J78: 0 | K78: 0 | L78: 10.91505 | M78: 35.303875 | N78: 92.439225 | O78: 161.112925 | P78: 0 | Q78: 0
C80: Profit and Loss - partial until EBITDA (AUD '000)
C81: Revenues | G81: =SUM(H81:Q81) -> 7444.66125 | H81: =H12 -> 0 | I81: =I12 -> 0 | J81: 1077.375 | K81: 1185.1125 | L81: 1249.755 | M81: 1282.07625 | N81: 1314.3975 | O81: 1335.945 | P81: 0 | Q81: 0
C82: Operating expenditures | G82: -2018.8 | H82: =H13 -> 0 | I82: =I13 -> 0 | J82: -280 | K82: -364 | L82: -352.8 | M82: -333.2 | N82: -369.6 | O82: -319.2 | P82: 0 | Q82: 0
C83: EBITDA | G83: 5425.86125 | H83: =SUM(H81:H82) -> 0 | I83: =SUM(I81:I82) -> 0 | J83: 797.375 | K83: 821.1125 | L83: 896.955 | M83: 948.87625 | N83: 944.7975 | O83: 1016.745 | P83: 0 | Q83: 0
